Cogmind - Beta 17 @@@ ROGUE MODE // 2026.07.16 @ 21:17:22 Player: Sadani Result: Self-destructed Performance ------------- Evolutions (2) 1000 Regions Visited (3) 600 Robots Destroyed (52) 260 Value Destroyed (1044) 1044 Prototype IDs (3) 60 Alien Tech Used (0) 0 Bonus (0) 0 TOTAL SCORE: 2964 Bonus ------- None Cogmind --------- Core Integrity 532/550 Matter 8/300 Energy 275/275 System Corruption 0% Temperature Cool (0) Movement Treading (156) Location -8/Materials Parts ------- > --- POWER (1) -------- Deuterium Engine > --- PROPULSION (4) --- Light Treads Light Treads Spiked Treads Advanced Treads > --- UTILITY (3) ------ Large Storage Unit Advanced Visual Processing Unit > --- WEAPON (3) ------- Minigun Improved Light Cannon Assault Cannon > --- INVENTORY (15) --- Subdweller Monowheel Cooling System Structural Scanner Improved Signal Interpreter Improved Terrain Scanner Seismic Detector ECM Suite Hacking Suite Subdweller Beam Cannon Subdweller Machine Gun Minigun Minigun Minigun Multitool Ripper Peak State ------------ > --- POWER ------------ Deuterium Engine > --- PROPULSION ------- Light Treads Light Treads Spiked Treads Advanced Treads > --- UTILITY ---------- Large Storage Unit Advanced Visual Processing Unit Hacking Suite > --- WEAPON ----------- Minigun Improved Light Cannon Assault Cannon > --- INVENTORY -------- Subdweller Monowheel Cooling System Structural Scanner Improved Signal Interpreter Improved Terrain Scanner Seismic Detector ECM Suite Hacking Suite Subdweller Beam Cannon Subdweller Machine Gun Minigun Minigun Minigun Multitool Ripper [Rating: 28] Favorites ----------- Power Light Ion Engine Engine Light Ion Engine Propulsion Light Treads Treads Light Treads Utility Large Storage Unit Device Cooling System Storage Large Storage Unit Processor Advanced Visual Processing Unit Hackware Hacking Suite Weapon Particle Gun Energy Gun Particle Gun Ballistic Gun Minigun Ballistic Cannon Light Cannon Slashing Weapon Ripper Build | -11 -10 -10 -8 ------- Run | Yrd Mat Sub Mat Slots Evolved 4 | . . . 4 Power . | . . . . Propulsion 2 | . . . 2 Utility 1 | . . . 1 Weapon 1 | . . . 1 Parts Attached 32 | 7 8 7 10 Power 5 | 1 1 2 1 Engine 5 | 1 1 2 1 Core . | . . . . Reactor . | . . . . Propulsion 8 | 2 . 2 4 Treads 8 | 2 . 2 4 Leg . | . . . . Wheel . | . . . . Hover . | . . . . Flight . | . . . . Utility 6 | 2 2 . 2 Device 2 | 1 1 . . Storage 2 | 1 1 . . Processor 1 | . . . 1 Hackware 1 | . . . 1 Protection . | . . . . Artifact . | . . . . Weapon 13 | 2 5 3 3 Energy Gun 7 | 2 5 . . Energy Cannon . | . . . . Ballistic Gun 1 | . . . 1 Ballistic Cannon 4 | . . 2 2 Launcher . | . . . . Special Weapon . | . . . . Impact Weapon . | . . . . Slashing Weapon 1 | . . 1 . Piercing Weapon . | . . . . Special Melee Weapon . | . . . . Unidentified Prototypes . | . . . . Parts Lost 7 | . 2 3 2 Power 1 | . . 1 . Propulsion 3 | . . 2 1 Utility 1 | . . . 1 Weapon 2 | . 2 . . Highest Loss Streak 2 | . 2 2 1 To Critical Strikes . | . . . . Average Backups 13 | 1 11 14 14 Power . | . 1 . . Propulsion 1 | . 1 1 1 Utility 4 | . 4 5 6 Weapon 5 | . 4 6 6 Tool/Special . | . . . . Unused Backups 18 | . . 2 16 Power . | . . . . Propulsion 1 | . . . 1 Utility 6 | . . . 6 Weapon 10 | . . 2 8 Tool/Special 1 | . . . 1 Average Slot Usage (%) 99 | . 99 99 97 Engine 13 | . 13 13 9 Treads 28 | . 28 27 34 Device 12 | . 14 14 7 Storage 13 | . 14 14 9 Processor 1 | . . . 8 Energy Gun 22 | . 28 27 . Ballistic Cannon 4 | . . . 23 Peak Build Rating 28 | 7 12 14 28 Average Rating 13 | 5 10 11 24 On Entrance 7 | . 7 12 11 Avg Prop Armor Cover (%) 5 | . . . 5 Naked Turns . | . . . . Heaviest Build 43 | 14 32 31 43 Greatest Support 82 | 40 40 40 82 Greatest Overweight (x) . | . . . . Average Overweight (x) . | . . . . Largest Inventory Capacity 15 | 8 15 15 15 Average Capacity 14 | 7 14 15 15 Most Carried 15 | 3 15 15 15 Average Carried 13 | 1 11 14 14 Final Capacity 15 | 8 15 15 15 Final Carried 15 | 3 15 15 15 Class Distribution -------------------- 83% | Mutant 16% | Skirmisher Dominant Class ---------------- Mutant | -10/Materials Mutant | -10/Subcaves Skirmisher | -8/Materials Resources | -11 -10 -10 -8 ----------- Run | Yrd Mat Sub Mat Matter Collected 593 | 259 86 40 208 Remotely . | . . . . Salvage Created 1311 | 40 596 250 425 Parts 111 | 5 52 17 37 Haulers Intercepted 3 | . 1 . 2 Recyclers Shooed 1 | . . . 1 Parts Field Recycled . | . . . . Retrieved Matter . | . . . . Parts Self-Destructed 18 | . . 18 . Prevented . | . . . . Parts Restored . | . . . . Kills | -11 -10 -10 -8 ------- Run | Yrd Mat Sub Mat Combat Hostiles Destroyed 40 | . 18 9 13 Melee 3 | . . 3 . Guns 25 | . 18 6 1 Cannons 12 | . . . 12 Classes Destroyed 9 | 1 4 2 2 Tunneler 3 | 2 . . 1 Hauler 3 | . 1 . 2 Recycler 1 | . . . 1 Operator 1 | . . . 1 Watcher 4 | . 3 . 1 Swarmer 22 | . 9 5 8 Grunt 11 | . 9 1 1 Sentry 5 | . . 1 4 Subdweller 2 | . . 2 . Best Kill Streak 7 | 2 6 3 7 Combat Bots Only 6 | . 6 3 5 Max Kills in Single Turn 2 | 2 1 2 2 Gunslinging 1 | . . 1 . Exploded . | . . . . Melee 1 | . . 1 . Uniques/NPCs Destroyed . | . . . . Combat | -11 -10 -10 -8 -------- Run | Yrd Mat Sub Mat Hostile Shots Fired 206 | . 78 65 63 Missed 66 | . 21 24 21 Hits 140 | . 57 41 42 Projectile 140 | . 57 41 42 Critical Strikes 2 | . . 1 1 Damage Taken 1631 | 27 501 575 528 Core 244 | . 102 124 18 Absorbed by Shields . | . . . . Core Remaining (%) 54 | 100 . 9 . Volleys Fired 91 | 1 40 16 34 Largest 3 | 2 2 2 3 Hottest 130 | 80 130 130 100 Shots Fired 196 | 2 72 32 90 Gun 113 | 2 72 32 7 Cannon 83 | . . . 83 Launcher . | . . . . Special . | . . . . Kinetic 90 | . . . 90 Thermal 70 | 1 37 32 . Explosive . | . . . . Electromagnetic 36 | 1 35 . . Robot Hit Streak 15 | 2 7 15 9 Robot Miss Streak 4 | . 3 4 3 Penetration Max . | . . . . Secondary Targets 2 | . 1 1 . Max Gunslinging Chain 1 | . 1 1 . Shots Hit Robots 130 | 2 45 26 57 Core Hits 64 | 3 28 11 22 Critical Kills . | . . . . Critical Parts Destroyed . | . . . . Critical Strikes 3 | . 1 . 2 Burn 1 | . 1 . . Blast 2 | . . . 2 Melee Attacks 4 | . . 4 . Impact . | . . . . Slashing 4 | . . 4 . Piercing . | . . . . Sneak Attacks . | . . . . Combat Hostiles . | . . . . Follow-up Attacks . | . . . . Damage Inflicted 2560 | 121 686 487 1266 Guns 1100 | 22 659 368 51 Cannons 1186 | . . . 1186 Explosions 99 | 99 . . . Melee 119 | . . 119 . Ramming 56 | . 27 . 29 Kinetic 1237 | . . . 1237 Thermal 804 | 109 327 368 . Explosive . | . . . . Electromagnetic 344 | 12 332 . . Impact . | . . . . Slashing 119 | . . 119 . Piercing . | . . . . Highest Corruption . | . . . . Average Corruption . | . . . . Corruption Purged . | . . . . Corruption Blocked . | . . . . Overload Shots . | . . . . Overflow Damage 77 | 6 . 19 52 Projectiles 52 | . . . 52 Explosions 6 | 6 . . . Melee 19 | . . 19 . Knockbacks 6 | . . . 6 Impact . | . . . . Kinetic 6 | . . . 6 Secondary . | . . . . Self-Inflicted Damage 27 | 27 . . . Shots 1 | 1 . . . Rammed 7 | . 4 . 3 Targets Rammed 7 | . 4 . 3 Kicked . | . . . . Crushed . | . . . . Highest Temperature 382 | 30 382 8 90 Average Temperature 90 | 21 98 8 38 Received Heat Transfer 378 | . 78 156 144 Effects 4 | . 4 . . Shutdowns 1 | . 1 . . Energy Bleed 1 | . 1 . . Interference 2 | . 2 . . Siege Activations . | . . . . Martial Activations . | . . . . Shielding Activations . | . . . . Robots Disrupted . | . . . . Combat Hostiles . | . . . . Robots Corrupted . | . . . . Combat Hostiles . | . . . . Parts Fried . | . . . . Impact Corruptions . | . . . . Robots Melted . | . . . . Combat Hostiles . | . . . . Parts Melted 3 | . 2 1 . Heat Transferred 1878 | 225 802 851 . Parts Sabotaged . | . . . . Parts Stolen . | . . . . Parts Stripped . | . . . . Power Chain Reactions 1 | 1 . . . Alert | -11 -10 -10 -8 ------- Run | Yrd Mat Sub Mat Maximum Alert Level 1 | . . . 1 Low Security (%) 87 | 100 100 . 52 Level 1 12 | . . . 47 Level 2 . | . . . . Level 3 . | . . . . Level 4 . | . . . . Level 5 . | . . . . High Security . | . . . . Max Security . | . . . . Peak Influence 308 | 10 158 . 308 Initial 80 | . . . 80 Average 89 | 1 62 . 178 Influence Increases 1223 | 10 553 230 430 Destroy 0b10 Robot/C 760 | . 360 140 260 Destroy 0b10 Robot/NC 60 | 10 20 . 30 Destroy Leader 144 | . 78 . 66 Successful Hack 23 | . 19 . 4 Select Force Hacks 60 | . 60 . . Disable Machine 15 | . 15 . . Destroy Structure 11 | . 1 . 10 Lose Combat Pursuer 150 | . . 90 60 Influence Decreases 979 | 10 535 92 342 Entered New Map 86 | . . 10 76 Time Decay 727 | 10 399 72 246 Lost Part 50 | . 20 10 20 Purge Threat 116 | . 116 . . Squads Dispatched 8 | . 4 . 4 Investigation 3 | . 2 . 1 Extermination . | . . . . Reinforcement 4 | . 2 . 2 Assault . | . . . . Garrison 1 | . . . 1 Intercept . | . . . . Searches Triggered . | . . . . Construction Impeded . | . . . . Haulers Reinforced . | . . . . Active Scanning Responses . | . . . . Cargo Convoy Interrupts . | . . . . Stealth | -11 -10 -10 -8 --------- Run | Yrd Mat Sub Mat Distress Signals 6 | . 2 . 4 Communications Jammed . | . . . . Distress Signals . | . . . . Times Spotted 69 | . 30 13 26 Peak Tracking Total 8 | . 5 6 8 Tactical Retreats 6 | . . 2 4 Traps | -11 -10 -10 -8 ------- Run | Yrd Mat Sub Mat Traps Triggered 2 | . . 2 . Indirectly . | . . . . Trap Hack Attempts . | . . . . Triggered . | . . . . Disarmed . | . . . . Reprogrammed . | . . . . Reused . | . . . . Traps Extracted . | . . . . Installed . | . . . . Triggered . | . . . . Machines | -11 -10 -10 -8 ---------- Run | Yrd Mat Sub Mat Machines Disabled 1 | . 1 . . Max in Single Turn 1 | . 1 . . Machines Repaired . | . . . . Machines Dismantled . | . . . . Machines Sabotaged . | . . . . Overloaded Fab Kills . | . . . . Hacking | -11 -10 -10 -8 --------- Run | Yrd Mat Sub Mat Machines Accessed 11 | . 8 . 3 Terminals 9 | . 6 . 3 Fabricators . | . . . . Repair Stations . | . . . . Recycling Units 2 | . 2 . . Scanalyzers . | . . . . Garrison Access . | . . . . Total Hacks 28 | . 21 . 7 Successful 11 | . 9 . 2 Failed 17 | . 12 . 5 Catastrophic 1 | . 1 . . Database Lockouts . | . . . . Manual 13 | . 9 . 4 Terminals 25 | . 18 . 7 Fabricators . | . . . . Repair Stations . | . . . . Recycling Units 3 | . 3 . . Scanalyzers . | . . . . Garrison Access . | . . . . Terminal Hacks 9 | . 7 . 2 Part Schematic 1 | . 1 . . Robot Analysis 2 | . 2 . . Prototype ID Bank 3 | . 2 . 1 Unreport Threat 1 | . 1 . . Locate Traps 2 | . 1 . 1 Fabricator Hacks . | . . . . Repair Station Hacks . | . . . . Recycling Unit Hacks . | . . . . Scanalyzer . | . . . . Garrison Access Hacks . | . . . . Unauthorized Hacks 2 | . 2 . . Terminals . | . . . . Fabricators . | . . . . Repair Stations . | . . . . Recycling Units 2 | . 2 . . Tunnel 2 | . 2 . . Scanalyzers . | . . . . Garrison Access . | . . . . Data Cores Recovered . | . . . . Used . | . . . . Hacking Detections 10 | . 7 . 3 Full Trace Events 1 | . . . 1 Feedback Events . | . . . . Feedback Blocked . | . . . . Robot Schematics Acquired . | . . . . Robots Built . | . . . . Authchips . | . . . . Time . | . . . . Total Robot Build Rating . | . . . . Part Schematics Acquired 1 | . 1 . . Parts Built . | . . . . Authchips . | . . . . Time . | . . . . Total Part Build Rating . | . . . . Part Studies Acquired . | . . . . Parts Repaired . | . . . . Time . | . . . . Parts Recycled . | . . . . Recycled Matter . | . . . . Retrieved Matter . | . . . . Retrieved Components . | . . . . Parts Scanalyzed . | . . . . Part Schematics Acquired . | . . . . Parts Damaged . | . . . . Bothacking | -11 -10 -10 -8 ------------ Run | Yrd Mat Sub Mat Used RIF Installer . | . . . . Robots Hacked . | . . . . Non-combat . | . . . . Combat . | . . . . Robot Hacks Applied . | . . . . Relay Couplers Released . | . . . . Fabnet Peak Effective % . | . . . . Robots Rewired . | . . . . Allies Hacked . | . . . . Hacks Repelled . | . . . . Allies | -11 -10 -10 -8 -------- Run | Yrd Mat Sub Mat Total Allies . | . . . . Largest Group . | . . . . Highest-Rated Group . | . . . . Highest-Rated Ally . | . . . . Total Orders . | . . . . Ally Attacks . | . . . . Total Damage . | . . . . Kills . | . . . . Allies Corrupted . | . . . . Allies Melted . | . . . . Intel | -11 -10 -10 -8 ------- Run | Yrd Mat Sub Mat Active Infowar (turns) 1550 | 11 838 205 496 Optics 496 | . . . 496 Seismic 1054 | 11 838 205 . Robot Analysis Total 2 | . 2 . . Derelict Logs Recovered . | . . . . Drone Launches . | . . . . Drone Recoveries . | . . . . Exploration | -11 -10 -10 -8 ------------- Run | Yrd Mat Sub Mat Turns Passed 3240 | 70 1445 1201 524 Spaces Moved 1758 | 37 789 690 242 Core 5 | 5 . . . Treads 1753 | 32 789 690 242 Legs . | . . . . Wheels . | . . . . Hover . | . . . . Flight . | . . . . Fastest Speed 50 | 50 160 160 155 Average Speed 159 | 145 160 160 155 Slowest Speed 160 | 160 160 160 160 Overloaded Moves . | . . . . Propulsion Burnouts . | . . . . Robots Hopped . | . . . . Potential Cave-ins . | . . . . Cave-ins Triggered . | . . . . Exploration Rate (%) 37 | 3 99 27 22 Regions Visited 3 Branch Regions 1 Pre-discovered Areas 2 | . 2 . . Known Exits Taken . | . . . . Unknown Exits Taken 3 | 1 1 1 . Scrap Searched . | . . . . Spaces Dug . | . . . . Terrain Destroyed 4 | . . . 4 Melee . | . . . . Projectile 4 | . . . 4 AOE . | . . . . Terrain Rammed . | . . . . Walls Destroyed . | . . . . Machines Disabled . | . . . . Actions | -11 -10 -10 -8 --------- Run | Yrd Mat Sub Mat Total 2006 | 49 897 744 316 Wait 62 | . 39 16 7 Move 1755 | 36 788 689 242 Hop . | . . . . Pick Up 31 | 5 12 6 8 Fast Attach 16 | 5 3 1 7 Attach 7 | 2 2 2 1 Detach 4 | . 3 . 1 Swap 11 | . 3 6 2 Drop 18 | . 3 4 11 Fire 91 | 1 40 16 34 Melee 4 | . . 4 . Ram . | . . . . Kick . | . . . . Crush 7 | . 4 . 3 Escape Stasis . | . . . . Rewire . | . . . . Trap . | . . . . Miscellaneous . | . . . . Route ------- -11/Scrapyard -10/Materials (discovered 5 exits: [*Mat x3] / [*Min] / [*Sub]) -10/Subcaves (discovered 2 exits: *Mat x2) -8/Materials History --------- Turn | Location | Event 10 | -11/Scrapyard | Discovered new exit (range 16) 71 | -11/Scrapyard | Entered Materials 283 | -10/Materials | Discovered new exit (range 10) 301 | -10/Materials | Build established: Mutant 354 | -10/Materials | Discovered new exit (range 8) 610 | -10/Materials | Discovered new exit (range 9) 776 | -10/Materials | Discovered new exit (range 12) 1485 | -10/Materials | Discovered new exit (range 5) 1516 | -10/Materials | Entered Subcaves 1517 | -10/Subcaves | Approached by a straggling Scientist 1691 | -10/Subcaves | Discovered new exit (range 12) 1919 | -10/Subcaves | Core integrity fell below 50% 2538 | -10/Subcaves | A swath of the cavern ceiling suddenly collapsed 2619 | -10/Subcaves | Core integrity fell below 20% 2693 | -10/Subcaves | Discovered new exit (range 15) 2717 | -10/Subcaves | Entered Materials 2717 | -8/Materials | Evolved 4 slots: Propulsion x2, Utility x1, Weapon x1 3010 | -8/Materials | Build established: Skirmisher 3200 | -8/Materials | Garrison activated, responded to threat 3241 | -8/Materials | Self-destructed Last Messages --------------- 03174_ Connecting with Terminal... 03176_ ALERT: Suspicious activity at Terminal M012. Dispatching Investigation squad. 03185_ Connecting with Terminal... 03200_ G-47 Trooper knocked back. 03200_ G-47 Trooper calls for garrison reinforcements. 03200_ ALERT: Activating Garrison Access M001. 03203_ G-47 Trooper destroyed. 03203_ A-02 Transporter destroyed. 03211_ O-16 Technician sends out distress signal. 03212_ O-16 Technician destroyed. 03212_ Slug penetrates Wall. 03214_ K-01 Serf collects debris. 03216_ Penetrated by Slug. 03216_ ALERT: Hostiles spotted, dispatching reinforcements to Terminal M004. 03227_ Hacking Suite destroyed. 03236_ Slug penetrates Wall. Map ----- +----------------------------------------------------+ | ####+### + """ ## # """ #??? | | =% = # """ ## # """ #??? | | %%* ! # """ + + #??? | | %%% ! # ## # """" #??? | | =!*"" ########### # """" #??? | | """" # # # """" #??? | | """" %# ! # # #??? | | """"" ! # ] # #########???? | | !"""% = # """ """ # ####????????? | | ==%==[%!+ """ """ + #????????? | | %==* * # """ """ #### #????????? | | +#########%#! """ #??# #????????? | | ?????????# # #??# #????????? | | ?????????+ ###########??# #????????? | | ?????????# #????????????# #????????? | | ?????????# #????????????# #????????? | | ?????????# #????????????# #????????? | | ?????????# #????????????# #????????? | | ?????????#+#????????????# #????????? | | ?????????? ?????????????# #????????? | | ?????????? ?????????????# #????????? | | ????????????????????????# #????????? | | ????????????????????????# #????????? | | ????????????????????????# #????????? | | ????????????????????????# #????????? | | ????????????????????????#@#????????? | | ????????????????????????# #????????? | | ????????????????????????# #????????? | | ????????????????????????# #????????? | | ????????????????????????# #????????? | | ????????????????????????# #####????? | | ?????????????????????#### #????? | | ???????????#/#####"###"##xx #????? | | ??? !=%=%%%=%== T #????? | | ????????????#####/####### #????? | | ????????????????????????# #????? | | ????????????????????????###+####???? | | ?????????H??????????????# #???? | | ????????????????????????# ! ""#???? | | ????????????????????????# T"#???? | | ????????????????????????# ! ""#???? | | ????????????????????????# #???? | | ????????????????????????# ! !#???? | | ????????????????????????########???? | | ???????????????????????????????????? | | ???????????????????????????????????? | | ???????????????????????????????????? | | ???????????????????????????????????? | | ???????????????????????????????????? | | ???????????????????????????????????? | +----------------------------------------------------+ Best States ------------- Heat Dissipation 53 Energy Generation 14 Energy Capacity 275 Matter Stores 300 Matter Capacity 300 Sight Range 20 Terrain Scan Density 10 Evasion (%) 40 Recoil Reduction 4 Offensive Hacking 10 Item Schematics ----------------- Sml. Storage Unit | -10/Materials | Hacked Robot Schematics ------------------ None Fabricated ------------ Nothing Repaired ---------- Nothing Studied --------- None Alien Tech Used ----------------- None Achievements -------------- None Challenges ------------ None Game ------ Seed FlyingGravjetPit Manual? 0 Play Time 00:31:42 Cumulative 47.5 hours Start 2026.07.16 @ 20:46:18 End 2026.07.16 @ 21:17:22 Sessions 1 Manual Loads 0 Difficulty Rogue Special Mode None Game No. 21 Rogue 19 Adventurer 2 Explorer 0 Win Type - Total 1 Types 1/0/0/0/0/0/0/0/0/0 Lore% 18 Gallery% 31 Achievement% 26 Wizard Run 0 Options --------- Layout 1 ASCII 0 Keyboard 1 Movement Numpad Keybinds 0 Fullscreen 1 Font 24/Smallcaps Map View 50x35 Zoom Use 0% Tactical HUD 1 Map Filters NONE Filters NONE Steam 1 RUN: b02c5089-ca64-4248-b311-d6b75ca9cd86